fUSD/lending_fUSD_20240201
["ID","MTS","AMOUNT","RATE_DAILY","PERIOD"]
[313145301,1706806243493,-150.0,0.00022779,2]
[313145302,1706806243503,-150.0,0.00022782,2]
[313145303,1706806243513,-150.0,0.00022782,2]
[313145305,1706806243522,-150.0,0.00022783,2]
[313145307,1706806243531,-150.0,0.00022789,2]
[313145308,1706806243541,-150.0,0.0002279,2]
[313145310,1706806243550,-150.0,0.00022791,2]
[313145313,1706806243560,-150.0,0.00022792,2]
[313145314,1706806243569,-150.0,0.00022792,2]
[313145316,1706806243578,-150.0,0.00022795,2]
[313145318,1706806243587,-150.0,0.00022795,2]
[313145319,1706806243597,-1500.0,0.00022796,2]
[313145320,1706806243607,-1500.0,0.00022798,2]
[313145321,1706806243616,-728.11,0.00022799,2]
[313145322,1706806243625,-500.0,0.000228,2]
[313145323,1706806243634,-150.0,0.000228,2]
[313145324,1706806243643,-92645.0902,0.000228,2]
[313145325,1706806243652,-150.0,0.00022802,2]
[313145326,1706806243662,-150.0,0.00022804,2]
[313145327,1706806243671,-1053.84916775,0.00022804,2]
[313145328,1706806243683,-150.0,0.00022806,2]
[313145329,1706806243693,-150.0,0.00022808,2]
[313145330,1706806243703,-150.0,0.00022816,2]
[313145331,1706806243712,-150.0,0.00022816,2]
[313145332,1706806243721,-150.0,0.00022821,2]
[313145333,1706806243730,-150.0,0.00022821,2]
[313145334,1706806243739,-150.0,0.00022829,2]
[313145335,1706806243749,-150.0,0.0002283,2]
[313145336,1706806243758,-150.0,0.0002283,2]
[313145337,1706806243768,-150.0,0.00022834,2]
[313145338,1706806243777,-150.0,0.00022834,2]
[313145339,1706806243786,-150.0,0.00022838,2]
[313145340,1706806243795,-150.0,0.00022839,2]
[313145341,1706806243804,-150.0,0.00022841,2]
[313145342,1706806243814,-150.0,0.00022844,2]
[313145343,1706806243823,-150.0,0.00022845,2]
[313145344,1706806243833,-150.0,0.00022849,2]
[313145345,1706806243842,-150.0,0.00022851,2]
[313145346,1706806243851,-150.0,0.00022851,2]
[313145347,1706806243861,-150.0,0.00022854,2]
[313145348,1706806243870,-150.0,0.00022859,2]
[313145349,1706806243880,-150.0,0.0002286,2]
[313145350,1706806243889,-150.0,0.0002286,2]
[313145351,1706806243899,-150.0,0.00022861,2]
[313145352,1706806243908,-150.0,0.00022865,2]
[313145353,1706806243917,-150.0,0.00022865,2]
[313145354,1706806243926,-150.0,0.00022866,2]
[313145355,1706806243936,-303.58003269,0.00022869,2]
[313145356,1706806243945,-150.0,0.00022872,2]
[313145357,1706806243954,-150.0,0.00022874,2]
[313145358,1706806243964,-150.0,0.00022874,2]
[313145359,1706806243974,-300.0,0.00022875,2]
[313145360,1706806243984,-150.0,0.00022875,2]
[313145361,1706806243994,-150.0,0.00022876,2]
[313145362,1706806244003,-150.0,0.00022877,2]
[313145363,1706806244013,-150.0,0.00022878,2]
[313145364,1706806244023,-150.0,0.00022881,2]
[313145365,1706806244032,-150.0,0.00022882,2]
[313145366,1706806244041,-150.0,0.00022883,2]
[313145367,1706806244050,-150.0,0.00022884,2]
[313145368,1706806244059,-150.0,0.00022885,2]
[313145369,1706806244069,-150.0,0.00022885,2]
[313145370,1706806244079,-150.0,0.00022893,2]
[313145371,1706806244088,-150.0,0.00022894,2]
[313145372,1706806244096,-150.0,0.00022896,2]
[313145373,1706806244106,-525.07651331,0.00022898,2]
[313145374,1706806244115,-373.78263158,0.00022898,2]
[313145375,1706806244125,-155.0,0.00022898,2]
[313145376,1706806244134,-150.0,0.00022898,2]
[313145377,1706806244143,-13028.7339247,0.00022899,2]
[313145378,1706806244152,-100000.0,0.000229,2]
[313145379,1706806244161,-150.0,0.000229,2]
[313145380,1706806244171,-150.0,0.000229,2]
[313145381,1706806244181,-5000.0,0.000229,2]
[313145382,1706806244191,-1500.0,0.00022902,2]
[313145383,1706806244200,-150.0,0.00022908,2]
[313145384,1706806244210,-150.0,0.00022908,2]
[313145385,1706806244220,-150.0,0.00022915,2]
[313145386,1706806244230,-150.0,0.00022919,2]
[313145387,1706806244240,-150.0,0.00022925,2]
[313145388,1706806244251,-150.0,0.00022927,2]
[313145389,1706806244262,-150.0,0.00022931,2]
[313145390,1706806244271,-150.0,0.00022933,2]
[313145391,1706806244281,-150.0,0.00022933,2]
[313145392,1706806244291,-150.0,0.00022934,2]
[313145393,1706806244300,-150.0,0.00022936,2]
[313145394,1706806244309,-150.0,0.00022939,2]
[313145395,1706806244318,-150.0,0.00022941,2]
[313145396,1706806244328,-150.0,0.00022942,2]
[313145397,1706806244338,-150.0,0.00022943,2]
[313145398,1706806244347,-150.0,0.00022943,2]
[313145399,1706806244358,-150.0,0.00022947,2]
[313145400,1706806244368,-150.0,0.00022952,2]
[313145401,1706806244377,-150.0,0.00022954,2]
[313145402,1706806244386,-150.0,0.00022955,2]
[313145403,1706806244396,-150.0,0.00022957,2]
[313145404,1706806244406,-150.0,0.00022961,2]
[313145405,1706806244416,-166.18423933,0.00022962,2]
[313145406,1706806244425,-153.9723145,0.00022962,2]
[313145407,1706806244435,-1076.8010469,0.00022962,2]
[313145408,1706806244445,-150.0,0.00022964,2]
[313145409,1706806244454,-150.0,0.00022965,2]
[313145410,1706806244464,-153.16034027,0.00022966,2]
[313145411,1706806244473,-150.0,0.00022967,2]
[313145412,1706806244482,-150.0,0.00022967,2]
[313145413,1706806244491,-150.0,0.00022975,2]
[313145414,1706806244500,-150.0,0.0002298,2]
[313145415,1706806244509,-725.52,0.00022984,2]
[313145416,1706806244518,-150.0,0.00022984,2]
[313145417,1706806244527,-150.0,0.00022984,2]
[313145418,1706806244535,-150.0,0.00022984,2]
[313145419,1706806244545,-150.0,0.00022988,2]
[313145420,1706806244554,-150.0,0.00022992,2]
[313145421,1706806244563,-150.0,0.00022995,2]
[313145422,1706806244572,-163.16886553,0.00022996,2]
[313145423,1706806244581,-280.50247646,0.00022996,2]
[313145424,1706806244592,-191.56675423,0.00022996,2]
[313145425,1706806244601,-291.52934988,0.00022996,2]
[313145426,1706806244611,-155.0,0.00022996,2]
[313145427,1706806244620,-280.476469,0.00022996,2]
[313145428,1706806244630,-180.93286713,0.00022996,2]
[313145429,1706806244639,-192.27631755,0.00022996,2]
[313145430,1706806244648,-155.0,0.00022996,2]
[313145431,1706806244658,-279.98693874,0.00022996,2]
[313145432,1706806244667,-150.0,0.00022996,2]
[313145433,1706806244844,-599.27979208,0.00022997,2]
[313145434,1706806244855,-6454.84005374,0.00022998,2]
[313145435,1706806244865,-583.54439267,0.00022998,2]
[313145436,1706806244875,-708.49547189,0.00022998,2]
[313145437,1706806244884,-239.95844186,0.00022998,2]
[313145438,1706806244894,-332.84281867,0.00022998,2]
[313145439,1706806244903,-150.0,0.00022998,2]
[313145440,1706806244912,-713.39,0.00022998,2]
[313145441,1706806244922,-379.1185339,0.00022999,2]
[313145442,1706806244931,-223.77578636,0.00022999,2]
[313145443,1706806244940,-307.76060284,0.00022999,2]
[313145444,1706806244950,-228.57369086,0.00022999,2]
[313145445,1706806244959,-592.40305684,0.00022999,2]
[313145446,1706806244968,-109916.3660048,0.00023,3]
[313145447,1706806244987,-1054.37395305,0.00023,3]
[313145448,1706806244998,-879.79238483,0.00023,3]
[313145449,1706806245010,-11501.48451194,0.00023,3]
[313145450,1706806245021,-604.8212046,0.00023,3]
[313145455,1706806246183,-2502.20295838,0.00022699,2]
[313145456,1706806246242,-1711.6305464,0.00022699,2]
[313145457,1706806246252,-189.52764458,0.00022699,2]
[313145458,1706806246261,-150.0,0.00022777,2]
[313145459,1706806246270,-150.0,0.00022788,2]
[313145460,1706806246280,-150.0,0.00022789,2]
[313145461,1706806246289,-150.0,0.00022802,2]
[313145462,1706806246299,-150.0,0.00022804,2]
[313145463,1706806246308,-150.0,0.00022821,2]
[313145464,1706806246317,-150.0,0.00022826,2]
[313145465,1706806246326,-150.0,0.00022827,2]
[313145466,1706806246335,-150.0,0.00022857,2]
[313145467,1706806246345,-150.0,0.00022869,2]
[313145468,1706806246355,-150.0,0.00022874,2]
[313145469,1706806246367,-150.0,0.00022877,2]
[313145470,1706806246376,-150.0,0.00022884,2]
[313145471,1706806246385,-150.0,0.00022887,2]
[313145472,1706806246395,-150.0,0.0002289,2]
[313145473,1706806246404,-150.0,0.00022894,2]
[313145474,1706806246414,-150.0,0.00022896,2]
[313145475,1706806246423,-150.0,0.00022912,2]
[313145476,1706806246432,-150.0,0.00022925,2]
[313145477,1706806246441,-150.0,0.00022952,2]
[313145478,1706806246451,-150.0,0.00022967,2]
[313145479,1706806246460,-150.0,0.00022982,2]
[313145480,1706806246472,-150.0,0.00022983,2]
[313145481,1706806246481,-150.0,0.00022989,2]
[313145482,1706806246491,-150.0,0.00022995,2]
[313145483,1706806246501,-41464.41295861,0.00023,3]
[313145484,1706806246514,-11400.00000049,0.00023,3]
[313145485,1706806246526,-21195.00000001,0.00023,3]
[313145486,1706806246553,-92688.2875,0.000226,2]
[313145487,1706806246562,-264.88455642,0.00022699,2]
[313145488,1706806246571,-335707.61902859,0.00023,3]
[313145489,1706806246580,-382022.57230748,0.00023,2]
[313145490,1706806246592,-605.67639657,0.00023,2]
[313145491,1706806246603,-594484.90713438,0.00023,2]
[313145492,1706806246617,-455.88996001,0.00023,2]
[313145493,1706806246628,-428.35631094,0.00023,2]
[313145494,1706806246639,-4168.7569479,0.00023,2]
[313145495,1706806246650,-2278.79999999,0.00023,2]
[313145496,1706806246663,-569.35,0.00023,2]
[313145505,1706806362076,155.05,0.00022283,2]
[313145506,1706806368072,300.0,0.00022077,2]
[313145507,1706806374152,536.00973547,0.00020697,2]
[313145508,1706806408618,66873.0975,0.0002244,2]
[313145509,1706806413148,168.50002055,0.00022439,2]
[313145510,1706806437054,267.46773879,0.00022439,2]
[313145511,1706806456207,250.0,0.00021979,2]
[313145512,1706806457066,267.23849253,0.00022439,2]
[313145513,1706806466054,3549.68340179,0.00025,30]
[313145514,1706806470383,948.36,0.00022077,2]
[313145515,1706806488369,839.89893651,0.00021847,2]
[313145516,1706806490075,2676.65395806,0.00022077,2]
[313145517,1706806495345,750.0,0.00022199,2]
[313145518,1706806545946,840.0,0.00021934,2]
[313145519,1706806546505,197.29,0.00020016,2]
[313145520,1706806546883,197.29,0.0002228,2]
[313145521,1706806614317,1830.51,0.00021907,2]
[313145522,1706806677714,500.0,0.00021947,2]
[313145523,1706806678326,164.31,0.00017558,2]
[313145527,1706806767634,500.0,0.0002192,2]
[313145528,1706806788834,23900.0,0.00021929,2]
[313145529,1706806792175,150.0,0.00022,2]
[313145530,1706806793459,221.5,0.00021929,2]
[313145536,1706806889420,347.59,0.00022056,2]
[313145537,1706806892758,13721.09,0.00022115,2]
[313145538,1706806903395,168.63,0.00022281,2]
[313145539,1706806903649,168.63,0.00022342,2]
[313145540,1706806903899,168.63,0.00022403,2]
[313145541,1706806904163,168.63,0.00022464,2]
[313145543,1706806941305,246.96,0.00021815,2]
[313145545,1706806952767,1132.68,0.00021777,2]
[313145546,1706806962942,217.97,0.00019877,2]
[313145547,1706806963176,217.97,0.00022141,2]
[313145548,1706806972505,163.73,0.00021777,2]
[313145549,1706807011487,593.81711624,0.000225,2]
[313145550,1706807018214,526.65973143,0.00022501,2]
[313145551,1706807021074,1016.17,0.00021966,2]
[313145552,1706807022996,2500.0,0.000225,2]
[313145553,1706807023093,203.26864317,0.00022501,2]
[313145554,1706807028519,4649.82965175,0.00022501,2]
[313145555,1706807043994,474.62406618,0.00022501,2]
[313145556,1706807050430,22676.54298525,0.00022501,2]
[313145557,1706807054446,2447.0,0.00022317,2]
[313145558,1706807056746,401.73745732,0.00022501,2]
[313145559,1706807059558,400.0,0.00022501,2]
[313145560,1706807060001,362.75639342,0.00022501,2]
[313145564,1706807062694,526.72471438,0.00022501,2]
[313145565,1706807064738,315.18305531,0.00022501,2]
[313145566,1706807068129,150.0,0.00022489,2]
[313145567,1706807069184,698.97199421,0.00022501,2]
[313145568,1706807071322,374.89403808,0.00022501,2]
[313145569,1706807079363,2145.46767011,0.00022501,2]
[313145570,1706807083197,200.0,0.000221,8]
[313145571,1706807085645,500.0,0.000222,8]
[313145572,1706807087742,800.0,0.000223,8]
[313145573,1706807089868,1100.0,0.000224,8]
[313145574,1706807091971,1400.0,0.000225,8]
[313145575,1706807093597,203.26864317,0.00022501,2]
[313145576,1706807102456,1720.25,0.00021854,2]
[313145577,1706807157748,1484.4,0.00022032,2]
[313145578,1706807182312,-155.0,0.00022525,2]
[313145579,1706807182346,-168.63,0.00022526,2]
[313145580,1706807182382,-300.0,0.00022534,2]
[313145581,1706807182416,-150.0,0.00022534,2]
[313145582,1706807182449,-7806.55150851,0.00022534,2]
[313145583,1706807182482,-3635.78545975,0.00022535,2]
[313145584,1706807182517,-16812.34038914,0.00022538,2]
[313145585,1706807182548,-361.7913471,0.00022539,2]
[313145586,1706807182561,-155.0,0.00022539,2]
[313145587,1706807182572,-168.63,0.00022539,2]
[313145588,1706807182583,-300.0,0.00022539,2]
[313145589,1706807182596,-150.0,0.00022539,2]
[313145590,1706807182613,-7806.55150851,0.00022539,2]
[313145591,1706807182628,-3635.78545975,0.00022539,2]
[313145592,1706807182641,-16812.34038914,0.00022539,2]
[313145593,1706807182652,-21581.5939381,0.00022539,2]
[313145594,1706807226514,1000.0,0.00021899,2]
[313145597,1706807233460,168.89261506,0.0002244,2]
[313145598,1706807244159,43514.7734,0.00022439,2]
[313145599,1706807304577,2000.0,0.00021878,2]
[313145600,1706807310537,1236.2456999,0.00022476,2]
[313145601,1706807334089,250.0,0.00021895,2]
[313145602,1706807358346,1369.02,0.00021891,2]
[313145603,1706807377695,943.9,0.00021888,2]
[313145604,1706807386072,250.0,0.00021918,2]
[313145605,1706807399798,237.06061639,0.00021895,2]
[313145606,1706807399829,862.49160225,0.00021895,2]
[313145608,1706807402622,166.89,0.00021902,2]
[313145609,1706807403427,2829.87,0.00021895,2]
[313145610,1706807410356,710.4316209,0.00021847,2]
[313145611,1706807410465,156.07670342,0.00021895,2]
[313145612,1706807414963,1100.14824388,0.00021895,2]
[313145613,1706807416055,203.7,0.00022137,2]
[313145614,1706807416294,203.7,0.00022197,2]
[313145615,1706807416513,203.7,0.00022258,2]
[313145616,1706807416723,203.7,0.00022319,2]
[313145617,1706807416957,203.7,0.00022379,2]
[313145618,1706807417171,203.7,0.0002244,2]
[313145619,1706807417400,203.7,0.00022501,2]
[313145620,1706807422040,243.31,0.00020026,2]
[313145621,1706807422370,243.31,0.0002229,2]
[313145622,1706807429473,808.3198501,0.00021895,2]
[313145642,1706807432341,-374.89403808,0.00022538,2]
[313145643,1706807432351,-2604.99999666,0.00022538,2]
[313145644,1706807432360,-270.10596526,0.00022539,2]
[313145645,1706807432371,-412.3928713,0.00022539,2]
[313145646,1706807432380,-11029.43322652,0.00022539,2]
[313145647,1706807432453,-256.032,0.00022539,2]
[313145648,1706807432464,-1118.54245068,0.00022539,2]
[313145649,1706807432614,-289.19841951,0.00022539,2]
[313145727,1706807433398,561.1698166,0.00020467,2]
[313145843,1706807436625,23900.0,0.00021914,2]
[313145844,1706807437391,3292.31972474,0.00021895,2]
[313145870,1706807438371,-560.85558951,0.00022539,2]
[313145875,1706807438430,-4073.0204,0.00022539,2]
[313145876,1706807438442,-290.08119832,0.00022539,2]
[313145877,1706807438454,-613.48868811,0.00022539,2]
[313145878,1706807438490,-7456.94585599,0.00022539,2]
[313145879,1706807438551,-8559.17020861,0.00022539,2]
[313145880,1706807438561,-12543.3224295,0.0002254,2]
[313145881,1706807438571,-203.7,0.00022562,2]
[313145882,1706807438582,-2080.3,0.00022574,2]
[313145883,1706807438591,-500.0,0.000226,2]
[313145884,1706807438601,-203.7,0.00022622,2]
[313145885,1706807438611,-1181.64539277,0.00022674,2]
[313145886,1706807438620,-203.7,0.00022683,2]
[313145887,1706807438630,-499.99,0.00022709,2]
[313145888,1706807438639,-203.7,0.00022744,2]
[313145889,1706807438649,-20384.02486075,0.00022768,2]
[313145890,1706807438659,-1621.77,0.00022768,2]
[313145891,1706807438668,-241.4,0.00022768,2]
[313145892,1706807438678,-312.97,0.00022768,2]
[313145893,1706807438687,-2006.5353,0.00022798,2]
[313145894,1706807438697,-416.3619,0.00022798,2]
[313145895,1706807438706,-1178.7597,0.00022798,2]
[313145896,1706807438716,-900.3741,0.00022798,2]
[313145897,1706807438725,-2500.0,0.00022798,2]
[313145898,1706807438735,-782.5255692,0.000228,2]
[313145899,1706807438744,-203.7,0.00022804,2]
[313145900,1706807438754,-782.52556917,0.00022814,2]
[313145901,1706807438763,-782.52556917,0.00022829,2]
[313145902,1706807438773,-782.52556917,0.00022843,2]
[313145903,1706807438784,-782.52556917,0.00022857,2]
[313145904,1706807438795,-203.7,0.00022865,2]
[313145905,1706807438804,-782.52556917,0.00022871,2]
[313145906,1706807438813,-782.52556917,0.00022886,2]
[313145907,1706807438823,-53995.42753546,0.00022898,2]
[313145908,1706807438836,-30424.04253423,0.00022898,2]
[313145909,1706807438847,-13761.28763031,0.00022898,2]
[313145910,1706807438861,-11989.8148,0.000229,2]
[313145911,1706807438870,-376.8417,0.000229,2]
[313145912,1706807438879,-162.17979983,0.000229,2]
[313145913,1706807438889,-272.77624261,0.000229,2]
[313145914,1706807438898,-5000.0,0.000229,2]
[313145915,1706807438907,-782.52556917,0.000229,2]
[313145916,1706807438917,-154.04329522,0.000229,2]
[313145917,1706807438927,-381.4305357,0.000229,2]
[313145918,1706807438937,-1313.71692458,0.000229,2]
[313145919,1706807438947,-421.92925718,0.000229,2]
[313145920,1706807438956,-395.73136455,0.000229,2]
[313145921,1706807438966,-13217.46301131,0.000229,2]
[313145922,1706807438978,-726.92584865,0.000229,2]
[313145923,1706807438991,-600.0,0.000229,2]
[313145925,1706807441729,-1208.39541152,0.000229,2]
[313145926,1706807441739,-203.7,0.00022926,2]
[313145927,1706807441749,-30.22431538,0.00022987,2]
[313145928,1706807441796,-173.47568462,0.00022987,2]
[313145929,1706807441806,-172.80756588,0.00022997,2]
[313145930,1706807441815,-327.44971695,0.00022997,2]
[313145931,1706807441827,-557.47907071,0.00022997,2]
[313145932,1706807441837,-3048.63024709,0.00022997,2]
[313145933,1706807441847,-2151.23079667,0.00022997,2]
[313145934,1706807441857,-1048.05171629,0.00022997,2]
[313145935,1706807441867,-2312.60059357,0.00022997,2]
[313145936,1706807441876,-197.45102203,0.00022997,2]
[313145937,1706807441886,-489.42425043,0.00022997,2]
[313145938,1706807441895,-2202.37818378,0.00022997,2]
[313145939,1706807441905,-3631.13673471,0.00022997,2]
[313145940,1706807441914,-155.0,0.00022998,2]
[313145941,1706807441924,-525.34483202,0.00022998,2]
[313145942,1706807441935,-249.40429549,0.00022998,2]
[313145943,1706807441944,-155.0,0.00022998,2]
[313145944,1706807441954,-544.23452603,0.00022998,2]
[313145945,1706807441963,-266.13518399,0.00022998,2]
[313145946,1706807441972,-155.0,0.00022998,2]
[313145947,1706807441982,-155.0,0.00022998,2]
[313145948,1706807441991,-155.0,0.00022998,2]
[313145949,1706807442001,-200.60476027,0.00022998,2]
[313145950,1706807442010,-1063.50094198,0.00022998,2]
[313145951,1706807442020,-10552.37836956,0.00022998,2]
[313145952,1706807442031,-523.5696122,0.00022998,2]
[313145953,1706807442044,-302.02240745,0.00022998,2]
[313145954,1706807442054,-265.83954825,0.00022998,2]
[313145955,1706807442064,-476.11003961,0.00022998,2]
[313145956,1706807442074,-537.38418015,0.00022998,2]
[313145957,1706807442086,-401.38089774,0.00022998,2]
[313145958,1706807442096,-400.0,0.00022998,2]
[313145959,1706807442105,-355.5913269,0.00022998,2]
[313145960,1706807442115,-314.93050793,0.00022998,2]
[313145961,1706807442124,-697.63078856,0.00022998,2]
[313145962,1706807442134,-2151.61635687,0.00022998,2]
[313145963,1706807442143,-162.80930388,0.00022998,2]
[313145964,1706807442153,-158.90005231,0.00022998,2]
[313145965,1706807442162,-279.99555119,0.00022998,2]
[313145966,1706807442172,-3355.24,0.00022998,2]
[313145967,1706807442181,-156.50459175,0.00022998,2]
[313145968,1706807442190,-294.48445557,0.00022998,2]
[313145969,1706807442199,-373.40390124,0.00022998,2]
[313145970,1706807442210,-946.67301262,0.00022998,2]
[313145971,1706807442219,-7808.77135938,0.00022998,2]
[313145972,1706807442229,-312.47792313,0.00022998,2]
[313145973,1706807442238,-622.91904669,0.00022998,2]
[313145974,1706807442248,-631.72684832,0.00022998,2]
[313145975,1706807442257,-233.42707403,0.00022998,2]
[313145976,1706807442267,-283.67090201,0.00022998,2]
[313145977,1706807442277,-157.76834482,0.00022998,2]
[313145978,1706807442286,-3998.59477843,0.00022998,2]
[313145979,1706807442295,-490.76770208,0.00022998,2]
[313145980,1706807442305,-172.91236117,0.00022998,2]
[313145981,1706807442314,-345.75604865,0.00022998,2]
[313145982,1706807442323,-420.51163347,0.00022998,2]
[313145983,1706807442333,-6019.17416244,0.00022998,2]
[313145984,1706807442343,-155.52545056,0.00022998,2]
[313145985,1706807442352,-287.11624451,0.00022998,2]
[313145986,1706807442361,-2108.80283155,0.00022998,2]
[313145987,1706807442374,-515.53685384,0.00022998,2]
[313145988,1706807442384,-156.99158771,0.00022998,2]
[313145989,1706807442393,-172.7532029,0.00022998,2]
[313145990,1706807442402,-302.55500336,0.00022998,2]
[313145991,1706807442412,-698.04764279,0.00022998,2]
[313145992,1706807442421,-309.999999,0.00022998,2]
[313145993,1706807442430,-156.15910017,0.00022998,2]
[313145994,1706807442439,-250.36188246,0.00022998,2]
[313145995,1706807442449,-220.51136302,0.00022998,2]
[313145996,1706807442458,-6442.9483721,0.00022998,2]
[313145997,1706807442467,-1045.91992071,0.00022998,2]
[313145998,1706807442477,-1374.42899066,0.00022998,2]
[313145999,1706807442487,-226.01019368,0.00022998,2]
[313146000,1706807442496,-203.90995019,0.00022999,2]
[313146001,1706807442506,-150.01,0.00022999,2]
[313146002,1706807442515,-3306.75797983,0.00022999,2]
[313146003,1706807442524,-122274.9053716,0.00022999,2]
[313146004,1706807442533,-346.09911388,0.00022999,10]
[313146005,1706807442543,-414.66027559,0.00022999,2]
[313146006,1706807442552,-347.41795743,0.00022999,2]
[313146007,1706807442561,-500.0,0.00022999,2]
[313146008,1706807442571,-500.0,0.00022999,2]
[313146009,1706807442581,-156.14823303,0.00022999,2]
[313146010,1706807442591,-513.41391579,0.00022999,2]
[313146011,1706807442600,-500.0,0.00022999,2]
[313146012,1706807442610,-500.0,0.00022999,2]
[313146013,1706807442620,-637.61022825,0.00022999,2]
[313146014,1706807442630,-688.13271655,0.00023,3]
[313146015,1706807442640,-73747.27170304,0.00023,3]
[313146016,1706807442718,546.51884636,0.00022077,2]
[313146028,1706807443346,-31623.84305736,0.00023,3]
[313146030,1706807443359,-587.2575,0.00023,3]
[313146038,1706807443432,-726.85122567,0.00023,3]
[313146040,1706807443444,-782.76003,0.00023,3]
[313146043,1706807443457,-341.04,0.00023,3]
[313146045,1706807443474,-1746.79811112,0.00023,3]
[313146048,1706807443492,-639.43341486,0.00023,3]
[313146050,1706807443503,-453.02011,0.00023,3]
[313146059,1706807443614,-503.0,0.00023,3]
[313146060,1706807443628,-5999.59320033,0.00023,3]
[313146061,1706807443639,-6216.16446414,0.00023,3]
[313146062,1706807443675,-800.0,0.00023,3]
[313146066,1706807446391,-150.01,0.00022999,2]
[313146067,1706807446401,-290488.06325556,0.00023,3]
[313146068,1706807446414,-4168.7569479,0.00023,3]
[313146069,1706807446425,-71527.63002225,0.00023,3]
[313146070,1706807446435,-517125.09004388,0.00023,2]
[313146071,1706807448391,-155.85107827,0.00022999,2]
[313146072,1706807448401,-3306.75797983,0.00022999,2]
[313146073,1706807448411,-5256.11836527,0.00023,2]
[313146074,1706807448423,-8295.87302315,0.00023,2]
[313146075,1706807448435,-22526.32733904,0.00023,2]
[313146076,1706807448448,-21898.78712574,0.00023,2]
[313146077,1706807448460,-2812.64531728,0.00023,2]
[313146078,1706807448471,-10760.22676048,0.00023,2]
[313146079,1706807448483,-938.10168,0.00023,2]
[313146080,1706807448494,-985.0,0.00023,2]
[313146081,1706807448505,-1148.4,0.00023,2]
[313146097,1706807458247,500.0,0.00021895,2]
[313146098,1706807559266,260.75269255,0.00021895,2]
[313146099,1706807559808,362.00852423,0.00021895,2]
[313146100,1706807560606,257.53700397,0.00021895,2]
[313146101,1706807565306,404.33916482,0.00021238,2]
[313146102,1706807566338,776.28613137,0.00021885,2]
[313146103,1706807569434,455.45642413,0.00020289,2]
[313146104,1706807570246,500.0,0.00021895,2]
[313146105,1706807576223,732.61891874,0.00021,2]
[313146106,1706807577795,362.157587,0.00021895,2]
[313146110,1706807595813,187.80694747,0.00020289,2]
[313146111,1706807600222,731.89459306,0.00021,2]
[313146112,1706807645029,496.98,0.00021878,2]
[313146113,1706807646882,200.0,0.00021878,2]
[313146114,1706807670543,188.61,0.00021875,2]
[313146115,1706807750961,2604.99999666,0.00022501,2]
[313146116,1706807752656,2000.0,0.00021787,2]
[313146117,1706807753179,200.0,0.00021787,2]
[313146118,1706807761993,200.0,0.00021787,2]
[313146119,1706807774306,374.89403808,0.00022501,2]
[313146120,1706807783528,155.0,0.00022501,2]
[313146121,1706807787777,761.11670278,0.00022501,2]
[313146122,1706807803241,250.0,0.000218,2]
[313146123,1706807804845,150.0,0.000218,2]
[313146124,1706807826952,3931.5,0.000218,2]
[313146125,1706807853042,1103.01,0.00021831,2]
[313146126,1706807857733,266.55,0.0001991,2]
[313146127,1706807858073,266.55,0.00022174,2]
[313146128,1706807900345,167.76,0.00021821,2]
[313146132,1706807962768,3393.79104,0.00020548,7]
[313146133,1706807977146,3802.36,0.0002175,2]
[313146134,1706807986787,150.0,0.00022,2]